fUST/lending_fUST_20250331
["ID","MTS","AMOUNT","RATE_DAILY","PERIOD"]
[356888289,1743385832867,-581.76,0.00019452,2]
[356888290,1743385832877,-537.72365074,0.00019452,2]
[356888291,1743385832887,-500.0,0.00019452,2]
[356888292,1743385832898,-514.11019143,0.00019452,2]
[356888293,1743385832908,-500.0,0.00019452,2]
[356888294,1743385832918,-746.14595463,0.00019496,2]
[356888295,1743385832928,-773.75335495,0.00019551,2]
[356888296,1743385832938,-802.38222908,0.00019606,2]
[356888297,1743385832948,-500.0,0.00019726,2]
[356888298,1743385832958,-500.0,0.00019726,2]
[356888299,1743385832968,-8339.13,0.00019726,2]
[356888300,1743385832978,-500.0,0.00019726,2]
[356888301,1743385832989,-500.0,0.00019726,2]
[356888302,1743385832998,-500.0,0.00019726,2]
[356888303,1743385833008,-581.76,0.00019726,2]
[356888304,1743385833018,-500.0,0.00019726,2]
[356888305,1743385833028,-500.0,0.00019726,2]
[356888306,1743385833038,-818.53,0.000198,2]
[356888307,1743385833049,-818.53,0.000198,3]
[356888308,1743385833060,-8750.09059472,0.000199,2]
[356888309,1743385833071,-160.0,0.00019922,2]
[356888310,1743385833082,-500.0,0.0002,2]
[356888311,1743385833102,-500.0,0.0002,2]
[356888312,1743385833112,-8339.13,0.0002,2]
[356888313,1743385833122,-500.0,0.0002,2]
[356888314,1743385833133,-193.69255858,0.0002,2]
[356888315,1743385833143,-500.0,0.0002,2]
[356888316,1743385833155,-581.76,0.0002,2]
[356888317,1743385833166,-500.0,0.0002,2]
[356888318,1743385833176,-500.0,0.0002,2]
[356888319,1743385833186,-500.0,0.00020273,2]
[356888320,1743385833198,-500.0,0.00020273,2]
[356888321,1743385833209,-8339.13,0.00020273,2]
[356888322,1743385833219,-500.0,0.00020273,2]
[356888323,1743385833230,-500.0,0.00020273,2]
[356888324,1743385833240,-581.76,0.00020273,2]
[356888325,1743385833251,-500.0,0.00020273,2]
[356888326,1743385833262,-500.0,0.00020273,2]
[356888327,1743385833272,-418.75886239,0.00020354,2]
[356888328,1743385833282,-160.0,0.00020354,2]
[356888329,1743385833292,-214.54,0.0002038,3]
[356888330,1743385833302,-643.67,0.0002038,3]
[356888331,1743385833312,-835.47628717,0.0002039,2]
[356888332,1743385833322,-12458.93820146,0.0002039,2]
[356888333,1743385833333,-207.3720381,0.00020439,2]
[356888334,1743385833347,-500.0,0.00020547,2]
[356888335,1743385833357,-500.0,0.00020547,2]
[356888336,1743385833368,-8339.13,0.00020547,2]
[356888337,1743385833377,-500.0,0.00020547,2]
[356888338,1743385833388,-500.0,0.00020547,2]
[356888339,1743385833398,-581.76,0.00020547,2]
[356888340,1743385833604,-500.0,0.00020547,2]
[356888341,1743385833615,-500.0,0.00020547,2]
[356888342,1743385833625,-8750.09059454,0.0002059,2]
[356888343,1743385833635,-601.0,0.000206,2]
[356888344,1743385833645,-1000.0,0.000208,4]
[356888345,1743385833655,-1000.0,0.000208,5]
[356888346,1743385833665,-1000.0,0.000208,6]
[356888347,1743385833676,-1000.0,0.000208,7]
[356888348,1743385833689,-1000.0,0.000208,8]
[356888349,1743385833699,-800.0,0.00020814,2]
[356888350,1743385833710,-500.0,0.00020821,2]
[356888351,1743385833720,-500.0,0.00020821,2]
[356888352,1743385833730,-8339.13,0.00020821,2]
[356888353,1743385833740,-500.0,0.00020821,2]
[356888354,1743385833750,-500.0,0.00020821,2]
[356888355,1743385833759,-581.76,0.00020821,2]
[356888356,1743385833770,-422.12882855,0.00020821,2]
[356888357,1743385833780,-500.0,0.00020821,2]
[356888358,1743385833790,-841.73628938,0.00020863,2]
[356888359,1743385833799,-500.0,0.00020873,2]
[356888360,1743385833809,-500.0,0.00020873,2]
[356888361,1743385833818,-504.70833122,0.00020873,2]
[356888362,1743385833828,-500.0,0.00020873,2]
[356888363,1743385833837,-500.0,0.00020873,2]
[356888364,1743385833850,-500.0,0.00020873,2]
[356888365,1743385833859,-500.0,0.00020873,2]
[356888366,1743385833869,-500.0,0.00020873,2]
[356888367,1743385833879,-500.0,0.00020873,2]
[356888368,1743385833889,-500.0,0.00020873,2]
[356888369,1743385833899,-500.0,0.00020873,2]
[356888370,1743385833908,-800.0,0.00020882,2]
[356888371,1743385833917,-800.0,0.00020885,2]
[356888372,1743385833939,-6438.26769216,0.000209,2]
[356888373,1743385833962,-282.37153181,0.00019178,2]
[356888374,1743385833973,-1487.73614972,0.000209,2]
[356888531,1743385843192,-153.803,0.00018124,2]
[356888532,1743385843202,-500.0,0.00019178,2]
[356888533,1743385843212,-500.0,0.00019452,2]
[356888534,1743385843221,-500.0,0.00019726,2]
[356888535,1743385843231,-360.58844908,0.0002,2]
[356888536,1743385843241,-548.38,0.00020263,3]
[356888537,1743385843251,-835.47628717,0.00020354,2]
[356888538,1743385843261,-18505.65647031,0.000209,2]
[356888539,1743385843272,-751.18808791,0.000209,2]
[356888540,1743385843284,-3292.1025798,0.000209,2]
[356888543,1743385846282,-500.0,0.00019177,2]
[356888544,1743385846292,-500.0,0.00019177,2]
[356888545,1743385846303,-358.38576732,0.00019725,2]
[356888546,1743385846312,-189.6817087,0.00019725,2]
[356888547,1743385846322,-3212.63185487,0.000209,2]
[356888552,1743387013864,429.08,0.00010959,2]
[356888595,1743387032661,-303.86324718,0.00013699,2]
[356888596,1743387032671,-175.7493396,0.00013699,2]
[356888597,1743387032680,-7777.0,0.00018122,2]
[356888598,1743387032690,-300.0,0.00018122,2]
[356888599,1743387032700,-5000.0,0.00018123,2]
[356888600,1743387032711,-250.87003712,0.00018123,2]
[356888601,1743387032721,-6674.21903152,0.00018124,7]
[356888603,1743387038247,-358.12697751,0.00018123,2]
[356888604,1743387038257,-783.01850417,0.00018124,7]
[356888605,1743387038352,-47777.30704135,0.00018124,7]
[356888606,1743387038364,-803.09298951,0.00018124,7]
[356888609,1743387040718,-691.4836,0.00018124,7]
[356888610,1743387041640,-2837.90000003,0.00018124,7]
[356888622,1743387043601,-2954.79151319,0.00018124,7]
[356888623,1743387043621,-550.73773191,0.00018124,7]
[356888624,1743387043633,-22206.54562094,0.00018124,7]
[356888625,1743387043645,-3974.9999975,0.00018124,7]
[356888626,1743387043659,-3034.47572571,0.00018124,7]
[356888635,1743387046447,-381.92818453,0.00018124,7]
[356888636,1743387046459,-7925.50005964,0.00018124,7]
[356888637,1743387046470,-12458.93820146,0.00018124,7]
[356888638,1743387046480,-249.539,0.00018124,2]
[356888639,1743387046490,-255.22,0.00018124,2]
[356888640,1743387046499,-187.288,0.00018124,2]
[356888641,1743387046509,-1731.39848619,0.00018363,2]
[356888642,1743387046521,-482.21051381,0.00018363,2]
[356888643,1743387046531,-159.72378749,0.00019078,2]
[356888644,1743387046540,-799.7384134,0.00019176,2]
[356888700,1743388232850,-199.138817,0.0001816,2]
[356888701,1743388232860,-464.4406242,0.00018176,2]
[356888702,1743388232870,-4444.0,0.00018238,2]
[356888703,1743388232880,-521.20021094,0.0001824,2]
[356888705,1743388232890,-510.9382986,0.0001824,2]
[356888707,1743388232900,-208.2350274,0.00018289,2]
[356888708,1743388232909,-150.0,0.00018652,2]
[356888710,1743388232920,-201.0,0.00019,2]
[356888712,1743388232930,-216.51413188,0.00019175,2]
[356888715,1743388232940,-188.3795734,0.00019175,2]
[356888718,1743388232950,-300.0,0.00019175,2]
[356888721,1743388232960,-8165.4375123,0.00019176,2]
[356888724,1743388232969,-5000.0,0.00019177,2]
[356888727,1743388232979,-500.0,0.00019178,2]
[356888730,1743388232988,-485.98645193,0.00019178,2]
[356888733,1743388232998,-511.74047345,0.00019178,2]
[356888736,1743388233008,-266.42079982,0.00019178,2]
[356888739,1743388233018,-508.17623155,0.00019178,2]
[356888742,1743388233029,-599.16,0.00019178,2]
[356888744,1743388233039,-500.0,0.00019178,2]
[356888746,1743388233049,-500.0,0.00019178,2]
[356888749,1743388233061,-5906.88,0.00019178,2]
[356888751,1743388233071,-500.0,0.00019178,2]
[356888754,1743388233081,-500.0,0.00019178,2]
[356888756,1743388233091,-500.0,0.00019178,2]
[356888757,1743388233101,-500.0,0.00019178,2]
[356888758,1743388233111,-500.0,0.00019178,2]
[356888759,1743388233127,-8888.0,0.00019451,2]
[356888760,1743388233138,-326.38059736,0.00019451,2]
[356888761,1743388233148,-9999.0,0.00019451,2]
[356888762,1743388233158,-599.16,0.00019452,2]
[356888763,1743388233167,-500.0,0.00019452,2]
[356888764,1743388233178,-500.0,0.00019452,2]
[356888765,1743388233188,-5906.88,0.00019452,2]
[356888766,1743388233198,-500.0,0.00019452,2]
[356888767,1743388233208,-468.56857848,0.00019452,2]
[356888768,1743388233217,-500.0,0.00019452,2]
[356888769,1743388233227,-500.0,0.00019452,2]
[356888770,1743388233237,-500.0,0.00019452,2]
[356888771,1743388233247,-599.16,0.00019726,2]
[356888772,1743388233258,-440.36018983,0.00019726,2]
[356888773,1743388233267,-500.0,0.00019726,2]
[356888774,1743388233277,-5906.88,0.00019726,2]
[356888775,1743388233287,-500.0,0.00019726,2]
[356888776,1743388233296,-200.0,0.00019726,10]
[356888777,1743388233306,-301.688352,0.00019726,10]
[356888778,1743388233316,-224.24112515,0.00019726,2]
[356888779,1743388233326,-500.0,0.00019726,2]
[356888780,1743388233335,-500.0,0.00019726,2]
[356888781,1743388233345,-600.0,0.00019788,2]
[356888782,1743388233355,-10490.47139512,0.000198,2]
[356888783,1743388233456,-193006.98912769,0.000198,2]
[356888794,1743388238430,-495.68906098,0.00019743,2]
[356888795,1743388238441,-13403.97505514,0.000198,2]
[356888796,1743388238484,-386.01728257,0.000198,2]
[356888797,1743388238496,-892.31656702,0.000198,2]
[356888798,1743388238508,-821.1406638,0.000198,2]
[356888799,1743388238520,-2785.87455458,0.000198,2]
[356888800,1743388238531,-2175.35987812,0.000198,2]
[356888801,1743388238542,-9979.64436128,0.000198,2]
[356888802,1743388238555,-2493.08262015,0.000198,2]
[356888820,1743388243717,-24585.90056369,0.000198,2]
[356888831,1743388246730,-2986.49999998,0.000198,2]
[356888842,1743388610898,1500.0,0.0001524,120]
[356888858,1743388937103,2934.0,0.00014,30]
[356888905,1743389438290,-171.32318,0.00013699,2]
[356888906,1743389438299,-500.0,0.00018137,2]
[356888907,1743389438309,-300.0,0.00018137,2]
[356888908,1743389438319,-5000.0,0.00018138,2]
[356888909,1743389438328,-500.0,0.00018138,2]
[356888910,1743389438338,-161.20128199,0.00018786,5]
[356888911,1743389438347,-8630.37781361,0.000189,2]
[356888912,1743389438356,-150.0,0.0001908,2]
[356888913,1743389438368,-300.0,0.000194,8]
[356888914,1743389438378,-150.86800517,0.00019446,2]
[356888915,1743389438387,-500.0,0.00019448,2]
[356888916,1743389438397,-500.0,0.00019448,2]
[356888917,1743389438412,-500.0,0.00019449,2]
[356888918,1743389438422,-1103.12,0.00019449,2]
[356888919,1743389438431,-500.0,0.00019449,2]
[356888920,1743389438440,-525.52545762,0.00019449,2]
[356888921,1743389438450,-500.0,0.00019449,2]
[356888922,1743389438459,-508.08591188,0.00019449,2]
[356888923,1743389438469,-506.8820944,0.00019449,2]
[356888924,1743389438478,-650.07,0.00019449,2]
[356888925,1743389438487,-500.0,0.00019449,2]
[356888926,1743389438497,-500.0,0.00019449,2]
[356888928,1743389438507,-500.0,0.00019449,2]
[356888929,1743389438516,-204.85674947,0.00019449,2]
[356888930,1743389438526,-506.79106234,0.0001945,2]
[356888931,1743389438535,-507.2461442,0.0001945,2]
[356888932,1743389438544,-509.71997264,0.0001945,2]
[356888933,1743389438553,-503.07776868,0.0001945,2]
[356888934,1743389438563,-500.0,0.0001945,2]
[356888935,1743389438572,-508.05473336,0.0001945,2]
[356888936,1743389438581,-503.7625955,0.0001945,2]
[356888937,1743389438590,-502.55131012,0.0001945,2]
[356888938,1743389438599,-508.73678415,0.0001945,2]
[356888939,1743389438608,-5168.52,0.0001945,2]
[356888940,1743389438620,-500.0,0.0001945,2]
[356888941,1743389438629,-500.0,0.0001945,2]
[356888942,1743389438639,-520.53354942,0.00019451,2]
[356888943,1743389438648,-524.26,0.00019451,2]
[356888944,1743389438657,-8630.37781349,0.00019624,2]
[356888945,1743389438667,-69.65306806,0.0001968,2]
[356888946,1743389438679,-1275.68756105,0.0001968,2]
[356888947,1743389438688,-258.86,0.00019722,2]
[356888948,1743389438697,-500.0,0.00019722,2]
[356888949,1743389438707,-495.89561976,0.00019723,2]
[356888950,1743389438718,-500.0,0.00019723,2]
[356888951,1743389438728,-1103.12,0.00019723,2]
[356888952,1743389438738,-500.0,0.00019723,2]
[356888953,1743389438747,-500.0,0.00019723,2]
[356888954,1743389438756,-650.07,0.00019723,2]
[356888955,1743389438766,-500.0,0.00019723,2]
[356888956,1743389438775,-500.0,0.00019723,2]
[356888957,1743389438784,-500.0,0.00019723,2]
[356888958,1743389438794,-500.0,0.00019724,2]
[356888959,1743389438805,-5168.52,0.00019724,2]
[356888960,1743389438814,-506.6859177,0.00019724,2]
[356888961,1743389438823,-500.0,0.00019724,2]
[356888962,1743389438834,-524.26,0.00019725,2]
[356888963,1743389438843,-8888.0,0.00019742,2]
[356888964,1743389438852,-600.0,0.00019768,2]
[356888965,1743389438862,-586.0,0.00019778,2]
[356888966,1743389438871,-29749.107669,0.0001978,2]
[356888967,1743389438881,-891.88548151,0.00019823,2]
[356888968,1743389438890,-160.0,0.00019902,2]
[356888969,1743389438899,-160.0,0.00019902,2]
[356888970,1743389438908,-418.85542,0.00019903,2]
[356888971,1743389438918,-835.65699134,0.00019903,2]
[356888972,1743389438928,-12458.93820146,0.00019922,2]
[356888973,1743389438937,-159.756451,0.00019968,3]
[356888974,1743389438946,-500.0,0.00019996,2]
[356888975,1743389438956,-192.73033464,0.00019997,2]
[356888976,1743389438965,-1103.12,0.00019997,2]
[356888977,1743389438974,-500.0,0.00019997,2]
[356888978,1743389438983,-500.0,0.00019997,2]
[356888979,1743389438992,-650.07,0.00019997,2]
[356888980,1743389439001,-500.0,0.00019997,2]
[356888981,1743389439011,-500.0,0.00019997,2]
[356888982,1743389439020,-500.0,0.00019997,2]
[356888983,1743389439029,-622.13286795,0.00019998,2]
[356888984,1743389439043,-5168.52,0.00019998,2]
[356888985,1743389439053,-500.0,0.00019998,2]
[356888986,1743389439062,-524.26,0.00019999,2]
[356888987,1743389439071,-600.0,0.0002,2]
[356888988,1743389439081,-495.89561976,0.00020267,2]
[356888989,1743389439090,-527.91254548,0.0002027,2]
[356888990,1743389439099,-1103.12,0.00020271,2]
[356888991,1743389439112,-500.0,0.00020271,2]
[356888992,1743389439121,-528.04371897,0.00020271,2]
[356888993,1743389439131,-650.07,0.00020271,2]
[356888994,1743389439141,-500.0,0.00020271,2]
[356888995,1743389439150,-500.0,0.00020271,2]
[356888996,1743389439160,-500.0,0.00020271,2]
[356888997,1743389439169,-5168.52,0.00020272,2]
[356888998,1743389439177,-524.26,0.00020273,2]
[356888999,1743389439187,-5000.0,0.00020335,2]
[356889000,1743389439196,-237.953187,0.00020348,2]
[356889001,1743389439206,-237.953187,0.00020348,2]
[356889002,1743389439218,-8630.37781349,0.00020348,2]
[356889003,1743389439232,-155.5290286,0.00020439,2]
[356889004,1743389439244,-156.0,0.000205,2]
[356889005,1743389439254,-1103.12,0.00020545,2]
[356889006,1743389439264,-500.0,0.00020545,2]
[356889007,1743389439274,-650.07,0.00020545,2]
[356889008,1743389439284,-513.3644337,0.00020545,2]
[356889009,1743389439294,-500.0,0.00020545,2]
[356889010,1743389439304,-500.0,0.00020545,2]
[356889011,1743389439314,-5168.52,0.00020546,2]
[356889012,1743389439324,-524.26,0.00020547,2]
[356889013,1743389439334,-495.89561976,0.00020812,2]
[356889014,1743389439344,-1103.12,0.00020819,2]
[356889015,1743389439353,-500.0,0.00020819,2]
[356889016,1743389439363,-650.07,0.00020819,2]
[356889017,1743389439373,-500.0,0.00020819,2]
[356889018,1743389439383,-500.0,0.00020819,2]
[356889019,1743389439392,-5168.52,0.0002082,2]
[356889020,1743389439401,-524.26,0.00020821,2]
[356889021,1743389439410,-151.0,0.00020821,2]
[356889022,1743389439420,-195.17741835,0.00020899,2]
[356889023,1743389439430,-346.452942,0.000209,9]
[356889024,1743389439440,-800.0,0.00020923,2]
[356889025,1743389439449,-800.0,0.00020939,2]
[356889026,1743389439459,-800.0,0.00020987,2]
[356889027,1743389439469,-800.0,0.00020995,2]
[356889028,1743389439479,-41305.945371,0.00021,2]
[356889029,1743389439489,-2000.0,0.00021,2]
[356889030,1743389439499,-1016.64,0.00021,2]
[356889031,1743389439509,-53288.83284295,0.00021,2]
[356889043,1743389442847,-1772.02,0.00013562,2]
[356889078,1743390632077,-3227.98,0.00013562,2]
[356889079,1743390632088,-171.32318,0.00013699,2]
[356889080,1743390632099,-1749.0,0.0001524,7]
[356889081,1743390632109,-495.31356312,0.0001639,2]
[356889082,1743390632119,-198.49823598,0.00016392,2]
[356889083,1743390632128,-300.0,0.00018891,2]
[356889084,1743390632139,-13744.04092991,0.00018892,2]
[356889085,1743390632149,-500.0,0.00018892,2]
[356889086,1743390632159,-500.0,0.00018892,2]
[356889087,1743390632170,-500.0,0.00018892,2]
[356889088,1743390632180,-500.0,0.00018892,2]
[356889089,1743390632191,-500.0,0.00018892,2]
[356889090,1743390632201,-500.0,0.00018892,2]
[356889091,1743390632210,-500.0,0.00018892,2]
[356889092,1743390632220,-500.0,0.00018892,2]
[356889093,1743390632229,-500.0,0.00018892,2]
[356889094,1743390632239,-500.0,0.00018892,2]
[356889095,1743390632248,-500.0,0.00018892,2]
[356889096,1743390632258,-500.0,0.00018892,2]
[356889097,1743390632268,-421.65162999,0.00018892,2]
[356889098,1743390632278,-500.0,0.00018892,2]
[356889099,1743390632288,-500.0,0.00018892,2]
[356889100,1743390632298,-500.0,0.00018892,2]
[356889101,1743390632308,-500.0,0.00018892,2]
[356889102,1743390632319,-500.0,0.00018892,2]
[356889103,1743390632328,-500.0,0.00018892,2]
[356889104,1743390632338,-500.0,0.00018892,2]
[356889105,1743390632348,-500.0,0.00018892,2]
[356889106,1743390632357,-307.24308536,0.00018892,2]
[356889107,1743390632370,-192.75691464,0.00018892,2]
[356889108,1743390632379,-500.0,0.00018892,2]
[356889109,1743390632388,-500.0,0.00018892,2]
[356889110,1743390632399,-500.0,0.00018892,2]
[356889111,1743390632409,-500.0,0.00018892,2]
[356889112,1743390632419,-500.0,0.00018892,2]
[356889113,1743390632429,-500.0,0.00018892,2]
[356889114,1743390632439,-500.0,0.00018892,2]
[356889115,1743390632449,-6605.33291636,0.000189,2]
[356889116,1743390632460,-774.4503035,0.000189,2]
[356889117,1743390632476,-427.50616919,0.000189,2]
[356889118,1743390632486,-39.5931308,0.00019078,2]
[356889119,1743390632498,-339.69906519,0.00019078,2]
[356889120,1743390632507,-379.29219595,0.00019146,2]
[356889121,1743390632516,-153.24872563,0.00019166,2]
[356889122,1743390632525,-738.99,0.00019168,3]
[356889123,1743390632535,-409.80792667,0.00019177,2]
[356889124,1743390632545,-191.92499396,0.00019177,2]
[356889125,1743390632554,-500.0,0.00019178,2]
[356889126,1743390632564,-500.0,0.00019178,2]
[356889127,1743390632573,-500.0,0.00019178,2]
[356889128,1743390632582,-500.0,0.00019178,2]
[356889129,1743390632592,-500.0,0.00019178,2]
[356889130,1743390632601,-500.0,0.00019178,2]
[356889131,1743390632611,-500.0,0.00019178,2]
[356889132,1743390632620,-500.0,0.00019178,2]
[356889133,1743390632630,-500.0,0.00019178,2]
[356889134,1743390632642,-193.50412197,0.00019178,2]
[356889135,1743390632653,-506.71042748,0.00019178,2]
[356889136,1743390632799,-500.0,0.00019178,2]
[356889137,1743390632809,-348.14915688,0.00019178,2]
[356889138,1743390632820,-502.53,0.00019178,2]
[356889139,1743390632830,-500.0,0.00019178,2]
[356889140,1743390632839,-502.38042155,0.00019178,2]
[356889141,1743390632849,-513.81701181,0.00019178,2]
[356889142,1743390632859,-500.0,0.00019178,2]
[356889143,1743390632868,-510.61913829,0.00019178,2]
[356889144,1743390632877,-500.0,0.00019178,2]
[356889145,1743390632887,-500.0,0.00019178,2]
[356889146,1743390632896,-500.0,0.00019178,2]
[356889147,1743390632905,-515.59707954,0.00019178,2]
[356889148,1743390632915,-529.06625317,0.00019178,2]
[356889149,1743390632925,-500.0,0.00019178,2]
[356889150,1743390632934,-500.0,0.00019178,2]
[356889151,1743390632943,-500.0,0.00019178,2]
[356889152,1743390632953,-516.41037989,0.00019178,2]
[356889153,1743390632962,-500.0,0.00019178,2]
[356889154,1743390632971,-501.07603891,0.00019178,2]
[356889155,1743390632981,-500.0,0.00019178,2]
[356889156,1743390632990,-500.0,0.00019178,2]
[356889157,1743390633000,-503.3899294,0.00019178,2]
[356889158,1743390633009,-500.0,0.00019178,2]
[356889159,1743390633020,-500.0,0.00019178,2]
[356889160,1743390633030,-509.73077724,0.00019178,2]
[356889161,1743390633040,-697.25,0.00019178,2]
[356889162,1743390633051,-500.0,0.00019178,2]
[356889163,1743390633060,-500.0,0.00019178,2]
[356889164,1743390633070,-500.0,0.00019178,2]
[356889165,1743390633079,-500.0,0.00019178,2]
[356889166,1743390633089,-500.0,0.00019178,2]
[356889167,1743390633103,-500.0,0.00019178,2]
[356889168,1743390633112,-500.0,0.00019178,2]
[356889169,1743390633123,-504.4219808,0.00019178,2]
[356889170,1743390633133,-500.0,0.00019178,2]
[356889171,1743390633144,-500.0,0.00019178,2]
[356889172,1743390633155,-500.0,0.00019178,2]
[356889173,1743390633165,-500.0,0.00019178,2]
[356889174,1743390633174,-500.0,0.00019178,2]
[356889175,1743390633187,-500.0,0.00019178,2]
[356889176,1743390633199,-500.0,0.00019178,2]
[356889177,1743390633208,-500.0,0.00019178,2]
[356889178,1743390633218,-500.0,0.00019178,2]
[356889179,1743390633228,-500.0,0.00019178,2]
[356889180,1743390633238,-500.0,0.00019178,2]
[356889181,1743390633248,-200.0,0.00019178,2]
[356889182,1743390633258,-899.37,0.00019178,2]
[356889183,1743390633268,-500.0,0.00019178,2]
[356889184,1743390633279,-521.21035037,0.00019178,2]
[356889185,1743390633290,-500.0,0.00019178,2]
[356889186,1743390633300,-500.0,0.00019178,2]
[356889187,1743390633309,-500.0,0.00019178,2]
[356889188,1743390633319,-500.0,0.00019178,2]
[356889189,1743390633329,-557.74246019,0.00019178,2]
[356889190,1743390633339,-500.0,0.00019178,2]
[356889191,1743390633350,-500.0,0.00019178,2]
[356889192,1743390633360,-500.0,0.00019178,2]
[356889193,1743390633371,-500.0,0.00019178,2]
[356889194,1743390633382,-500.0,0.00019178,2]
[356889195,1743390633393,-500.0,0.00019178,2]
[356889196,1743390633403,-500.0,0.00019178,2]
[356889197,1743390633413,-500.0,0.00019178,2]
[356889198,1743390633423,-500.0,0.00019178,2]
[356889199,1743390633434,-500.0,0.00019178,2]
[356889200,1743390633444,-500.0,0.00019178,2]
[356889201,1743390633455,-500.0,0.00019178,2]
[356889202,1743390633464,-500.0,0.00019178,2]
[356889203,1743390633474,-500.0,0.00019178,2]
[356889204,1743390633483,-500.0,0.00019178,2]
[356889205,1743390633493,-500.0,0.00019178,2]
[356889206,1743390633504,-500.0,0.00019178,2]
[356889207,1743390633514,-500.0,0.00019178,2]
[356889208,1743390633524,-500.0,0.00019178,2]
[356889209,1743390633534,-500.0,0.00019178,2]
[356889210,1743390633543,-500.0,0.00019178,2]
[356889211,1743390633553,-500.0,0.00019178,2]
[356889212,1743390633562,-566.54,0.00019178,2]
[356889213,1743390633572,-500.0,0.00019178,2]
[356889214,1743390633581,-508.61356347,0.00019178,2]
[356889215,1743390633590,-560.69,0.00019178,2]
[356889216,1743390633600,-500.0,0.00019178,2]
[356889217,1743390633611,-500.0,0.00019178,2]
[356889218,1743390633621,-500.0,0.00019178,2]
[356889219,1743390633631,-511.66401669,0.00019178,2]
[356889220,1743390633641,-500.0,0.00019178,2]
[356889221,1743390633653,-500.0,0.00019178,2]
[356889222,1743390633663,-500.0,0.00019178,2]
[356889223,1743390633673,-500.0,0.00019178,2]
[356889224,1743390633684,-500.0,0.00019178,2]
[356889225,1743390633693,-500.0,0.00019178,2]
[356889226,1743390633703,-500.0,0.00019178,2]
[356889227,1743390633714,-500.0,0.00019178,2]
[356889228,1743390633724,-500.0,0.00019178,2]
[356889229,1743390633733,-500.0,0.00019178,2]
[356889230,1743390633743,-541.33,0.00019178,2]
[356889231,1743390633754,-500.0,0.00019178,2]
[356889232,1743390633764,-500.0,0.00019178,2]
[356889233,1743390633773,-507.21,0.00019178,2]
[356889234,1743390633783,-500.0,0.00019178,2]
[356889235,1743390633793,-500.0,0.00019178,2]
[356889236,1743390633802,-500.0,0.00019178,2]
[356889237,1743390633811,-563.77485539,0.00019178,2]
[356889238,1743390633821,-500.0,0.00019178,2]
[356889239,1743390633831,-500.0,0.00019178,2]
[356889240,1743390633840,-500.0,0.00019178,2]
[356889241,1743390633850,-500.0,0.00019178,2]
[356889242,1743390633860,-574.82,0.00019178,2]
[356889243,1743390633870,-500.0,0.00019178,2]
[356889244,1743390633880,-924.08,0.00019178,2]
[356889245,1743390633890,-500.0,0.00019178,2]
[356889246,1743390633901,-500.0,0.00019178,2]
[356889247,1743390633911,-500.0,0.00019178,2]
[356889248,1743390633920,-585.68,0.00019178,2]
[356889249,1743390633930,-500.0,0.00019178,2]
[356889250,1743390633940,-500.0,0.00019178,2]
[356889251,1743390633949,-500.0,0.00019178,2]
[356889252,1743390633959,-312.90866822,0.00019178,2]
[356889253,1743390633968,-500.0,0.00019178,2]
[356889254,1743390633978,-500.0,0.00019178,2]
[356889255,1743390633988,-500.0,0.00019178,2]